fUSD/lending_fUSD_20250716
["ID","MTS","AMOUNT","RATE_DAILY","PERIOD"]
[372478389,1752659439108,-601.38,0.00021917,2]
[372478390,1752659439118,-552.64,0.00021917,2]
[372478391,1752659439129,-460.0,0.00021917,2]
[372478392,1752659439140,-460.0,0.00021917,2]
[372478393,1752659439151,-460.0,0.00021917,2]
[372478394,1752659439160,-665.26,0.00021917,2]
[372478396,1752659439170,-159.25872685,0.00021917,2]
[372478398,1752659439180,-493.28762496,0.00021917,2]
[372478400,1752659439189,-460.0,0.00021917,2]
[372478402,1752659439199,-536.04,0.00021917,2]
[372478404,1752659439208,-460.0,0.00021917,2]
[372478406,1752659439217,-460.0,0.00021917,2]
[372478408,1752659439227,-824.65,0.00021917,2]
[372478410,1752659439237,-800.41,0.00021917,2]
[372478412,1752659439247,-500.0,0.00021917,2]
[372478414,1752659439257,-533.9,0.00021917,2]
[372478416,1752659439266,-417.22563115,0.00021917,2]
[372478418,1752659439276,-460.0,0.00021917,2]
[372478420,1752659439285,-249.68276902,0.00021917,2]
[372478428,1752659439355,-617.78723098,0.00021917,2]
[372478430,1752659439366,-460.0,0.00021917,2]
[372478432,1752659439377,-1004.37,0.00021917,2]
[372478434,1752659439387,-460.0,0.00021917,2]
[372478436,1752659439397,-587.33,0.00021917,2]
[372478438,1752659439406,-847.56,0.00021917,2]
[372478440,1752659439416,-460.0,0.00021917,2]
[372478442,1752659439425,-893.29,0.00021917,2]
[372478444,1752659439435,-460.0,0.00021917,2]
[372478446,1752659439444,-460.0,0.00021917,2]
[372478448,1752659439454,-460.0,0.00021917,2]
[372478450,1752659439463,-501.53,0.00021917,2]
[372478452,1752659439473,-1473.2,0.00021917,2]
[372478454,1752659439484,-460.0,0.00021917,2]
[372478456,1752659439493,-462.36331556,0.00021917,2]
[372478458,1752659439503,-460.0,0.00021917,2]
[372478460,1752659439512,-462.22321952,0.00021917,2]
[372478462,1752659439522,-460.0,0.00021917,2]
[372478464,1752659439532,-424.88480155,0.00021917,2]
[372478466,1752659439541,-460.0,0.00021917,2]
[372478468,1752659439551,-83.53657937,0.00021917,2]
[372478497,1752659439825,-366.5316,0.00021917,2]
[372478637,1752659441257,-1033.50650668,0.00021917,2]
[372478639,1752659441269,-1212.97531395,0.00021917,2]
[372478641,1752659441279,-57.79192769,0.00021917,2]
[372478654,1752659441400,-402.20807231,0.00021917,2]
[372478656,1752659441410,-460.0,0.00021917,2]
[372478658,1752659441419,-272.85567056,0.00021917,2]
[372478660,1752659441428,-460.0,0.00021917,2]
[372478662,1752659441437,-460.0,0.00021917,2]
[372478664,1752659441447,-578.03,0.00021917,2]
[372478666,1752659441456,-809.94,0.00021917,2]
[372478668,1752659441466,-1504.11,0.00021917,2]
[372478670,1752659441475,-217.78163692,0.00021917,2]
[372479174,1752659446449,-488.96325295,0.000219,2]
[372481046,1752659837990,158.21,0.00025962,120]
[372481048,1752659849047,1000.0,0.0003013,120]
[372481051,1752660048005,162.74,0.00013699,2]
[372481053,1752660121912,300.0,0.00019245,2]
[372481054,1752660183843,300.0,0.00019245,2]
[372481056,1752660241900,300.0,0.00019245,2]
[372481061,1752660289270,1001.0,0.0003013,120]
[372481062,1752660301856,300.0,0.00019245,2]
[372481063,1752660361917,300.0,0.00019245,2]
[372481092,1752660481324,300.0,0.00019245,2]
[372481096,1752660541440,154.0,0.00019245,2]
[372481097,1752660542444,300.0,0.00019245,2]
[372481100,1752660583350,700.0,0.00017122,2]
[372481101,1752660583548,2400.0,0.00017122,2]
[372481102,1752660584591,700.0,0.00018218,2]
[372481103,1752660585236,2400.0,0.00018218,2]
[372481116,1752660632218,-76595.09583454,0.00019246,2]
[372481117,1752660632230,-700.0,0.00019314,2]
[372481118,1752660632239,-2400.0,0.00019314,2]
[372481119,1752660632250,-525.0,0.00020153,2]
[372481120,1752660632262,-2117.41,0.0002023,2]
[372481121,1752660632272,-163.72,0.00020232,2]
[372481122,1752660632283,-250.0,0.00020299,2]
[372481123,1752660632293,-700.0,0.0002041,2]
[372481124,1752660632303,-2400.0,0.0002041,2]
[372481125,1752660632313,-1047.97,0.00020507,2]
[372481126,1752660632322,-244.12,0.00020605,2]
[372481127,1752660632333,-1000.0,0.00020648,2]
[372481128,1752660632343,-207.63,0.00020649,2]
[372481129,1752660632353,-158.21,0.00020769,2]
[372481130,1752660632363,-1000.0,0.00020881,2]
[372481131,1752660632373,-1500.0,0.00020892,2]
[372481132,1752660632384,-4031.856,0.00020913,2]
[372481133,1752660632394,-207.4,0.00020913,2]
[372481134,1752660632404,-499.99,0.00020951,2]
[372481135,1752660632418,-600.0,0.00020959,2]
[372481136,1752660632428,-4181.034672,0.00020968,2]
[372481137,1752660632438,-420.0,0.00020971,2]
[372481138,1752660632452,-628.0,0.00021,2]
[372481139,1752660632463,-4335.73295486,0.00021023,2]
[372481140,1752660632473,-4496.15507419,0.00021078,2]
[372481141,1752660632483,-4662.51281194,0.00021133,2]
[372481142,1752660632493,-4101.64025452,0.00021188,2]
[372481143,1752660632515,-733.38553146,0.00021188,2]
[372481144,1752660632525,-5013.92174006,0.00021243,2]
[372481145,1752660632535,-4905.42000629,0.00021298,2]
[372481146,1752660632555,-294.01683815,0.00021298,2]
[372481147,1752660632565,-168.0,0.00021338,2]
[372481148,1752660632575,-568.45781541,0.00021353,2]
[372481149,1752660632585,-783.19291433,0.00021439,2]
[372481150,1752660632596,-1006.53,0.00021447,11]
[372481152,1752660632607,-168.0,0.00021454,2]
[372481154,1752660632617,-600.0,0.00021507,2]
[372481155,1752660632627,-164.55269383,0.000216,2]
[372481156,1752660632637,-419.20451282,0.000216,2]
[372481157,1752660632647,-159.06782167,0.000216,2]
[372481159,1752660632658,-419.20451276,0.00021639,2]
[372481161,1752660632667,-164.55269383,0.00021643,2]
[372481163,1752660632677,-419.20451276,0.00021679,2]
[372481165,1752660632687,-207.63,0.00021682,2]
[372481167,1752660632697,-164.55269383,0.00021687,2]
[372481169,1752660632707,-5719.32723014,0.00021699,2]
[372481171,1752660632720,-410.68869457,0.00021699,2]
[372481173,1752660632732,-1195.10458892,0.00021699,2]
[372481178,1752660632752,-1508.12586525,0.00021699,2]
[372481180,1752660632761,-259.15394241,0.000217,2]
[372481182,1752660632772,-936.79460021,0.000217,2]
[372481185,1752660632784,-2340.37606216,0.000217,2]
[372481186,1752660632846,-3197.20927572,0.000217,2]
[372481188,1752660638237,-190.0,0.00020253,7]
[372481189,1752660638248,-408704.87338173,0.000217,2]
[372481190,1752660638259,-40871.29935092,0.000217,2]
[372481191,1752660638268,-1210.68745202,0.00021717,2]
[372481192,1752660638278,-419.20451276,0.00021718,2]
[372481193,1752660638288,-164.55269383,0.0002173,2]
[372481194,1752660638297,-932.443,0.00021741,2]
[372481195,1752660638307,-325.701,0.00021741,2]
[372481196,1752660638316,-518.021875,0.00021747,8]
[372481197,1752660638326,-419.20451276,0.00021757,2]
[372481198,1752660638335,-164.55269383,0.00021774,2]
[372481199,1752660638345,-419.20451276,0.00021797,2]
[372481200,1752660638355,-5000.0,0.00021817,2]
[372481201,1752660638366,-629.2557915,0.00021817,2]
[372481202,1752660638375,-164.55269383,0.00021817,2]
[372481203,1752660638385,-610.58226505,0.00021817,2]
[372481204,1752660638395,-159.06782164,0.00021826,2]
[372481205,1752660638405,-339.77960167,0.00021836,2]
[372481206,1752660638422,-783.19291434,0.00021836,2]
[372481207,1752660638434,-460.0,0.00021868,2]
[372481208,1752660638444,-1863.29,0.000219,2]
[372481209,1752660638455,-210.72748344,0.00021904,2]
[372481210,1752660638465,-160.0,0.00021906,2]
[372481211,1752660638475,-838.7287696,0.00021906,2]
[372481212,1752660638484,-476.61752775,0.00021906,2]
[372481213,1752660638496,-199.92758038,0.00021907,2]
[372481214,1752660638506,-168.0,0.00021911,2]
[372481215,1752660638516,-770.22,0.00021915,2]
[372481216,1752660638525,-770.22,0.00021915,2]
[372481217,1752660638535,-770.22,0.00021915,2]
[372481218,1752660638545,-770.22,0.00021915,2]
[372481219,1752660638556,-770.22,0.00021915,2]
[372481220,1752660638565,-770.22,0.00021915,2]
[372481221,1752660638575,-770.22,0.00021915,2]
[372481222,1752660638585,-770.22,0.00021915,2]
[372481223,1752660638595,-770.22,0.00021915,2]
[372481224,1752660638604,-770.22,0.00021915,2]
[372481225,1752660638613,-770.22,0.00021915,2]
[372481226,1752660638622,-770.22,0.00021915,2]
[372481227,1752660638632,-770.22,0.00021915,2]
[372481228,1752660638641,-770.22,0.00021915,2]
[372481229,1752660638651,-770.22,0.00021915,2]
[372481230,1752660638661,-770.22,0.00021915,2]
[372481231,1752660638670,-770.22,0.00021915,2]
[372481233,1752660638679,-770.22,0.00021915,2]
[372481235,1752660638688,-770.22,0.00021915,2]
[372481237,1752660638698,-770.22,0.00021915,2]
[372481239,1752660638708,-770.22,0.00021915,2]
[372481241,1752660638717,-770.22,0.00021915,2]
[372481243,1752660638727,-770.22,0.00021915,2]
[372481245,1752660638736,-770.42278813,0.00021915,2]
[372481247,1752660638745,-7714.27,0.00021916,2]
[372481249,1752660638755,-150.0,0.00021916,2]
[372481251,1752660638764,-150.0,0.00021916,2]
[372481253,1752660638774,-456.89541777,0.00021916,2]
[372481255,1752660638784,-212.5436397,0.00021916,2]
[372481257,1752660638793,-300.0,0.00021916,2]
[372481259,1752660638803,-666.0,0.00021916,2]
[372481261,1752660638812,-300.0,0.00021916,2]
[372481263,1752660638821,-195.75644067,0.00021917,2]
[372481265,1752660638831,-460.0,0.00021917,2]
[372481267,1752660638840,-1044.62,0.00021917,2]
[372481269,1752660638850,-883.22,0.00021917,2]
[372481271,1752660638859,-460.0,0.00021917,2]
[372481273,1752660638869,-460.0,0.00021917,2]
[372481274,1752660638878,-460.0,0.00021917,2]
[372481275,1752660638888,-858.63,0.00021917,2]
[372481276,1752660638898,-460.0,0.00021917,2]
[372481277,1752660638908,-460.0,0.00021917,2]
[372481278,1752660638917,-460.0,0.00021917,2]
[372481279,1752660638927,-460.0,0.00021917,2]
[372481281,1752660638938,-460.0,0.00021917,2]
[372481282,1752660638947,-460.0,0.00021917,2]
[372481285,1752660638963,-460.0,0.00021917,2]
[372481287,1752660638973,-460.0,0.00021917,2]
[372481289,1752660638983,-460.0,0.00021917,2]
[372481291,1752660638992,-865.64,0.00021917,2]
[372481293,1752660639002,-460.0,0.00021917,2]
[372481295,1752660639012,-500.0,0.00021917,2]
[372481297,1752660639021,-491.53818594,0.00021917,2]
[372481299,1752660639031,-460.0,0.00021917,2]
[372481301,1752660639041,-460.0,0.00021917,2]
[372481303,1752660639051,-533.56711352,0.00021917,2]
[372481305,1752660639061,-460.0,0.00021917,2]
[372481307,1752660639071,-503.90124771,0.00021917,2]
[372481309,1752660639080,-460.0,0.00021917,2]
[372481311,1752660639090,-816.54,0.00021917,2]
[372481313,1752660639099,-502.66379358,0.00021917,2]
[372481315,1752660639109,-460.0,0.00021917,2]
[372481317,1752660639118,-460.0,0.00021917,2]
[372481319,1752660639128,-460.0,0.00021917,2]
[372481321,1752660639138,-460.0,0.00021917,2]
[372481323,1752660639147,-527.58,0.00021917,2]
[372481325,1752660639156,-460.0,0.00021917,2]
[372481327,1752660639166,-460.0,0.00021917,2]
[372481329,1752660639175,-597.11,0.00021917,2]
[372481330,1752660639185,-460.0,0.00021917,2]
[372481331,1752660639194,-460.0,0.00021917,2]
[372481332,1752660639203,-460.0,0.00021917,2]
[372481333,1752660639213,-460.0,0.00021917,2]
[372481334,1752660639222,-460.0,0.00021917,2]
[372481335,1752660639231,-460.0,0.00021917,2]
[372481336,1752660639240,-460.0,0.00021917,2]
[372481337,1752660639249,-803.44,0.00021917,2]
[372481338,1752660639259,-529.52,0.00021917,2]
[372481339,1752660639268,-1027.34,0.00021917,2]
[372481340,1752660639277,-973.45,0.00021917,2]
[372481341,1752660639286,-460.0,0.00021917,2]
[372481343,1752660639295,-1489.71,0.00021917,2]
[372481345,1752660639305,-460.0,0.00021917,2]
[372481347,1752660639314,-460.0,0.00021917,2]
[372481349,1752660639324,-1374.63,0.00021917,2]
[372481351,1752660639333,-580.22,0.00021917,2]
[372481353,1752660639342,-460.0,0.00021917,2]
[372481355,1752660639352,-460.0,0.00021917,2]
[372481357,1752660639361,-460.0,0.00021917,2]
[372481359,1752660639371,-460.0,0.00021917,2]
[372481361,1752660639380,-460.0,0.00021917,2]
[372481363,1752660639390,-792.98,0.00021917,2]
[372481365,1752660639400,-839.87,0.00021917,2]
[372481367,1752660639412,-460.0,0.00021917,2]
[372481369,1752660639422,-460.0,0.00021917,2]
[372481371,1752660639432,-460.0,0.00021917,2]
[372481373,1752660639441,-460.0,0.00021917,2]
[372481375,1752660639451,-460.0,0.00021917,2]
[372481377,1752660639460,-959.57,0.00021917,2]
[372481379,1752660639469,-460.0,0.00021917,2]
[372481381,1752660639479,-500.0,0.00021917,2]
[372481383,1752660639489,-500.0,0.00021917,2]
[372481385,1752660639498,-500.0,0.00021917,2]
[372481387,1752660639507,-460.0,0.00021917,2]
[372481388,1752660639517,-460.0,0.00021917,2]
[372481391,1752660639529,-151.296929,0.00021917,2]
[372481392,1752660639538,-463.54386585,0.00021917,2]
[372481395,1752660639548,-151.0,0.00021917,2]
[372481397,1752660639558,-460.0,0.00021917,2]
[372481399,1752660639567,-530.64,0.00021917,2]
[372481401,1752660639578,-460.0,0.00021917,2]
[372481403,1752660639588,-460.0,0.00021917,2]
[372481405,1752660639598,-460.0,0.00021917,2]
[372481407,1752660639607,-478.88,0.00021917,2]
[372481409,1752660639617,-460.0,0.00021917,2]
[372481411,1752660639627,-460.0,0.00021917,2]
[372481413,1752660639637,-532.62,0.00021917,2]
[372481415,1752660639647,-736.6,0.00021917,2]
[372481417,1752660639656,-460.0,0.00021917,2]
[372481419,1752660639665,-886.48,0.00021917,2]
[372481421,1752660639674,-460.0,0.00021917,2]
[372481423,1752660639683,-460.0,0.00021917,2]
[372481425,1752660639693,-525.36907977,0.00021917,2]
[372481427,1752660639702,-460.0,0.00021917,2]
[372481429,1752660639712,-460.0,0.00021917,2]
[372481430,1752660639721,-460.0,0.00021917,2]
[372481432,1752660639731,-460.0,0.00021917,2]
[372481434,1752660639740,-460.0,0.00021917,2]
[372481436,1752660639751,-664.67,0.00021917,2]
[372481438,1752660639761,-256.34481136,0.00021917,2]
[372481441,1752660639771,-271.44,0.00021917,2]
[372481442,1752660639781,-460.0,0.00021917,2]
[372481444,1752660639792,-460.0,0.00021917,2]
[372481446,1752660639801,-151.0,0.00021917,2]
[372481448,1752660639811,-459.5833867,0.00021917,2]
[372481450,1752660639820,-460.0,0.00021917,2]
[372481452,1752660639829,-768.64,0.00021917,2]
[372481454,1752660639839,-512.5,0.00021917,2]
[372481456,1752660639849,-460.0,0.00021917,2]
[372481458,1752660639858,-460.0,0.00021917,2]
[372481460,1752660639868,-218.003179,0.00021917,2]
[372481462,1752660639878,-460.0,0.00021917,2]
[372481463,1752660639888,-460.0,0.00021917,2]
[372481465,1752660639898,-151.0,0.00021917,2]
[372481467,1752660639908,-460.0,0.00021917,2]
[372481469,1752660639918,-460.0,0.00021917,2]
[372481471,1752660639927,-151.0,0.00021917,2]
[372481473,1752660639937,-460.0,0.00021917,2]
[372481475,1752660639946,-465.61578846,0.00021917,2]
[372481477,1752660639956,-213.61035427,0.00021917,2]
[372481479,1752660639965,-594.39,0.00021917,2]
[372481481,1752660639975,-1194.41,0.00021917,2]
[372481483,1752660639984,-151.0,0.00021917,2]
[372481485,1752660639994,-460.0,0.00021917,2]
[372481487,1752660640003,-162.59891,0.00021917,2]
[372481489,1752660640013,-460.0,0.00021917,2]
[372481491,1752660640022,-460.0,0.00021917,2]
[372481493,1752660640032,-551.19695773,0.00021917,2]
[372481494,1752660640042,-1264.48,0.00021917,2]
[372481496,1752660640051,-460.0,0.00021917,2]
[372481498,1752660640061,-2731.06,0.00021917,2]
[372481500,1752660640071,-694.71,0.00021917,2]
[372481502,1752660640080,-460.0,0.00021917,2]
[372481504,1752660640090,-462.4035856,0.00021917,2]
[372481506,1752660640099,-151.0,0.00021917,2]
[372481508,1752660640109,-460.0,0.00021917,2]
[372481510,1752660640118,-460.0,0.00021917,2]
[372481512,1752660640128,-200.0,0.00021917,2]
[372481514,1752660640138,-460.0,0.00021917,2]
[372481516,1752660640148,-461.32401831,0.00021917,2]
[372481518,1752660640157,-460.0,0.00021917,2]
[372481520,1752660640167,-460.0,0.00021917,2]
[372481522,1752660640176,-460.0,0.00021917,2]
[372481524,1752660640185,-460.0,0.00021917,2]
[372481526,1752660640195,-460.0,0.00021917,2]
[372481528,1752660640204,-577.91,0.00021917,2]
[372481530,1752660640214,-460.0,0.00021917,2]
[372481549,1752660640346,-271.69514932,0.00021917,2]
[372481555,1752660640437,-1019.89,0.00021917,2]
[372481557,1752660640446,-460.0,0.00021917,2]
[372481559,1752660640458,-1334.98,0.00021917,2]
[372481561,1752660640468,-500.0,0.00021917,2]
[372481563,1752660640477,-500.0,0.00021917,2]
[372481565,1752660640489,-500.0,0.00021917,2]
[372481567,1752660640499,-500.0,0.00021917,2]
[372481569,1752660640509,-500.0,0.00021917,2]
[372481571,1752660640519,-500.0,0.00021917,2]
[372481573,1752660640528,-500.0,0.00021917,2]
[372481575,1752660640538,-460.0,0.00021917,2]
[372481577,1752660640548,-500.0,0.00021917,2]
[372481579,1752660640558,-500.0,0.00021917,2]
[372481581,1752660640567,-500.0,0.00021917,2]
[372481583,1752660640577,-500.0,0.00021917,2]
[372481585,1752660640587,-500.0,0.00021917,2]
[372481587,1752660640597,-500.0,0.00021917,2]
[372481589,1752660640606,-439.23166064,0.00021917,2]
[372481591,1752660640616,-195.544,0.00021917,2]
[372481593,1752660640626,-460.0,0.00021917,2]
[372481595,1752660640636,-460.0,0.00021917,2]
[372481597,1752660640645,-460.0,0.00021917,2]
[372481599,1752660640655,-460.0,0.00021917,2]
[372481601,1752660640665,-460.0,0.00021917,2]
[372481603,1752660640674,-553.9,0.00021917,2]
[372481605,1752660640684,-460.0,0.00021917,2]
[372481607,1752660640693,-460.0,0.00021917,2]
[372481609,1752660640703,-460.0,0.00021917,2]
[372481611,1752660640713,-460.0,0.00021917,2]
[372481613,1752660640723,-460.0,0.00021917,2]
[372481616,1752660640737,-460.0,0.00021917,2]
[372481618,1752660640747,-460.0,0.00021917,2]
[372481620,1752660640756,-517.2331191,0.00021917,2]
[372481622,1752660640766,-460.76459641,0.00021917,2]
[372481624,1752660640776,-706.39,0.00021917,2]
[372481626,1752660640785,-460.0,0.00021917,2]
[372481627,1752660640795,-460.0,0.00021917,2]
[372481629,1752660640804,-460.0,0.00021917,2]
[372481631,1752660640814,-507.19,0.00021917,2]
[372481633,1752660640824,-1196.63,0.00021917,2]
[372481636,1752660640834,-2039.05,0.00021917,2]
[372481637,1752660640843,-460.0,0.00021917,2]
[372481640,1752660640856,-460.0,0.00021917,2]
[372481642,1752660640865,-460.0,0.00021917,2]
[372481644,1752660640875,-460.0,0.00021917,2]
[372481646,1752660640885,-1000.0,0.00021917,2]
[372481648,1752660640894,-460.0,0.00021917,2]
[372481650,1752660640904,-437.54,0.00021917,2]
[372481652,1752660640914,-460.0,0.00021917,2]
[372481654,1752660640923,-460.0,0.00021917,2]
[372481656,1752660640933,-460.0,0.00021917,2]
[372481658,1752660640942,-460.0,0.00021917,2]
[372481660,1752660640952,-562.28,0.00021917,2]
[372481662,1752660640963,-152.676186,0.00021917,2]
[372481664,1752660640973,-152.676186,0.00021917,2]
[372481666,1752660640983,-473.03,0.00021917,2]
[372481668,1752660640993,-1520.94,0.00021917,2]
[372481670,1752660641002,-500.0,0.00021917,2]
[372481672,1752660641012,-500.0,0.00021917,2]
[372481674,1752660641022,-500.0,0.00021917,2]
[372481676,1752660641031,-500.0,0.00021917,2]
[372481678,1752660641041,-150.0,0.00021917,2]
[372481680,1752660641051,-280.61644827,0.00021917,2]
[372481682,1752660641060,-689.61,0.00021917,2]
[372481684,1752660641070,-460.0,0.00021917,2]
[372481686,1752660641080,-460.0,0.00021917,2]
[372481688,1752660641090,-460.0,0.00021917,2]
[372481690,1752660641100,-164.427366,0.00021917,2]
[372481692,1752660641109,-164.427366,0.00021917,2]
[372481694,1752660641119,-460.0,0.00021917,2]
[372481696,1752660641128,-598.34,0.00021917,2]
[372481698,1752660641137,-460.0,0.00021917,2]
[372481700,1752660641147,-164.427366,0.00021917,2]
[372481702,1752660641156,-164.427366,0.00021917,2]
[372481704,1752660641167,-1138.48,0.00021917,2]
[372481706,1752660641176,-460.0,0.00021917,2]
[372481708,1752660641185,-460.0,0.00021917,2]
[372481710,1752660641195,-460.0,0.00021917,2]
[372481712,1752660641205,-460.0,0.00021917,2]
[372481714,1752660641214,-460.0,0.00021917,2]
[372481716,1752660641224,-460.0,0.00021917,2]
[372481718,1752660641234,-460.0,0.00021917,2]
[372481720,1752660641244,-460.0,0.00021917,2]
[372481722,1752660641254,-486.57,0.00021917,2]
[372481724,1752660641264,-883.66,0.00021917,2]
[372481726,1752660641275,-460.0,0.00021917,2]
[372481728,1752660641285,-1101.79,0.00021917,2]
[372481730,1752660641295,-479.45,0.00021917,2]
[372481732,1752660641306,-460.0,0.00021917,2]
[372481734,1752660641316,-151.0,0.00021917,2]
[372481736,1752660641325,-460.0,0.00021917,2]
[372481738,1752660641335,-174.05568958,0.00021917,2]
[372481740,1752660641344,-462.63349962,0.00021917,2]
[372481742,1752660641354,-151.0,0.00021917,2]
[372481744,1752660641364,-460.0,0.00021917,2]
[372481746,1752660641374,-460.0,0.00021917,2]
[372481748,1752660641383,-723.43,0.00021917,2]
[372481750,1752660641393,-151.0,0.00021917,2]
[372481752,1752660641403,-500.0,0.00021917,2]
[372481754,1752660641414,-500.0,0.00021917,2]
[372481756,1752660641425,-151.0,0.00021917,2]
[372481758,1752660641434,-500.0,0.00021917,2]
[372481760,1752660641444,-500.0,0.00021917,2]
[372481762,1752660641455,-500.0,0.00021917,2]
[372481764,1752660641464,-500.0,0.00021917,2]
[372481766,1752660641474,-500.0,0.00021917,2]
[372481768,1752660641484,-624.56,0.00021917,2]
[372481770,1752660641496,-460.0,0.00021917,2]
[372481772,1752660641506,-597.72,0.00021917,2]
[372481774,1752660641515,-460.0,0.00021917,2]
[372481776,1752660641526,-1207.45,0.00021917,2]
[372481778,1752660641537,-460.0,0.00021917,2]
[372481780,1752660641546,-467.96446898,0.00021917,2]
[372481782,1752660641557,-462.18712367,0.00021917,2]
[372481783,1752660641567,-1198.22,0.00021917,2]
[372481785,1752660641577,-460.0,0.00021917,2]
[372481787,1752660641587,-460.0,0.00021917,2]
[372481789,1752660641597,-505.59526122,0.00021917,2]
[372481790,1752660641606,-511.69,0.00021917,2]
[372481791,1752660641616,-151.0,0.00021917,2]
[372481792,1752660641625,-460.0,0.00021917,2]
[372481793,1752660641634,-984.79,0.00021917,2]
[372481794,1752660641644,-462.78904692,0.00021917,2]
[372481795,1752660641654,-151.0,0.00021917,2]
[372481796,1752660641665,-460.0,0.00021917,2]
[372481797,1752660641674,-500.0,0.00021917,2]
[372481798,1752660641684,-500.0,0.00021917,2]
[372481799,1752660641693,-596.6496768,0.00021917,2]
[372481800,1752660641702,-500.0,0.00021917,2]
[372481802,1752660641712,-500.0,0.00021917,2]
[372481804,1752660641722,-463.92664724,0.00021917,2]
[372481806,1752660641732,-460.0,0.00021917,2]
[372481808,1752660641741,-460.0,0.00021917,2]
[372481810,1752660641751,-1362.83,0.00021917,2]
[372481812,1752660641762,-460.0,0.00021917,2]
[372481814,1752660641776,-348.362369,0.00021917,2]
[372481816,1752660641786,-1175.76,0.00021917,2]
[372481818,1752660641795,-536.18,0.00021917,2]
[372481820,1752660641804,-1132.43,0.00021917,2]
[372481822,1752660641813,-460.0,0.00021917,2]
[372481825,1752660641823,-348.362369,0.00021917,2]
[372481826,1752660641832,-460.0,0.00021917,2]
[372481829,1752660641842,-460.0,0.00021917,2]
[372481830,1752660641852,-151.0,0.00021917,2]
[372481833,1752660641861,-460.0,0.00021917,2]
[372481835,1752660641871,-460.0,0.00021917,2]
[372481837,1752660641883,-460.0,0.00021917,2]
[372481839,1752660641896,-750.11,0.00021917,2]
[372481841,1752660641906,-460.0,0.00021917,2]
[372481843,1752660641916,-460.0,0.00021917,2]
[372481844,1752660641925,-460.0,0.00021917,2]
[372481846,1752660641936,-460.0,0.00021917,2]
[372481848,1752660641947,-151.0,0.00021917,2]
[372481850,1752660641956,-460.0,0.00021917,2]
[372481852,1752660641966,-461.97226822,0.00021917,2]
[372481854,1752660641976,-460.0,0.00021917,2]
[372481856,1752660641985,-460.0,0.00021917,2]
[372481858,1752660641995,-151.0,0.00021917,2]
[372481860,1752660642004,-460.0,0.00021917,2]
[372481862,1752660642013,-501.65,0.00021917,2]
[372481864,1752660642023,-460.0,0.00021917,2]
[372481866,1752660642032,-608.99,0.00021917,2]
[372481868,1752660642042,-598.8,0.00021917,2]
[372481870,1752660642051,-478.56,0.00021917,2]
[372481872,1752660642061,-852.67,0.00021917,2]
[372481874,1752660642070,-562.68,0.00021917,2]
[372481876,1752660642082,-4042.92,0.00021917,2]
[372481878,1752660642092,-151.0,0.00021917,2]
[372481880,1752660642101,-460.0,0.00021917,2]
[372481882,1752660642111,-151.0,0.00021917,2]
[372481884,1752660642121,-460.0,0.00021917,2]
[372481886,1752660642131,-206.648635,0.00021917,2]